bitfinex-derivatives/quotes_ETHF0:USTF0_20250929
["timestamp","ask_amount","ask_price","bid_price","bid_amount"]
[1759174811835,0.00249038,4177.3,4177.2,1.18863]
[1759174812233,0.00249038,4177.3,4177.2,1.18864]
[1759174812425,0.22839038,4177.3,4177.2,1.18864]
[1759174812625,0.43769038,4177.3,4177.2,1.18864]
[1759174813240,0.00249038,4177.3,4177.2,1.18864]
[1759174813740,0.00710873,4177.9,4177.8,1.18857]
[1759174813935,0.23300873,4177.9,4177.8,1.18857]
[1759174814739,0.23575655,4177.9,4177.8,1.19080901]
[1759174815035,0.72055655,4177.9,4177.8,0.55063901]
[1759174815234,0.44505655,4177.9,4177.8,1.18900901]
[1759174815434,0.44505655,4177.9,4177.8,0.75843901]
[1759174817639,0.23575655,4177.9,4177.8,0.75843901]
[1759174817942,0.00985655,4177.9,4177.8,0.75843901]
[1759174826051,0.00985655,4177.9,4177.8,1.18900901]
[1759174826255,0.242,4178.6,4178.5,1.3304]
[1759174826443,0.85676,4178.9,4178.8,0.7652]
[1759174827045,41.94206,4178.9,4178.8,0.7652]
[1759174827251,41.94411126,4178.9,4178.8,0.7652]
[1759174827449,41.94411126,4178.9,4178.8,0.3295]
[1759174827947,41.94411126,4178.9,4178.6,0.43048]
[1759174827948,0.85679,4178.6,4178.5,0.6728]
[1759174828153,1.14209,4178.6,4178.5,0.6728]
[1759174828346,40.80205126,4178.9,4178.0,0.1347]
[1759174828347,0.7116,4178.2,4178.1,0.96864]
[1759174828653,0.4263,4178.2,4178.1,1.19574]
[1759174831348,0.85683,4178.2,4178.1,1.19574]
[1759174831854,0.85683,4178.2,4178.1,0.7652]
[1759174832154,0.85683,4178.2,4178.1,0.5381]
[1759174832155,1.14213,4178.2,4178.1,0.5381]
[1759174832854,0.85683,4178.2,4178.1,1.19574]
[1759174833050,0.85683,4178.2,4178.1,0.5381]
[1759174833247,1.14213,4178.2,4178.1,0.3295]
[1759174833459,1.14213,4178.2,4178.1,0.5381]
[1759174837368,1.65189212,4178.2,4178.1,0.96864]
[1759174837664,1.65189212,4178.2,4178.1,0.5381]
[1759174837866,0.85686,4177.9,4177.8,0.54033901]
[1759174838066,0.242,4177.9,4177.8,1.19800901]
[1759174839062,3.4345,4178.5,4178.4,1.19571]
[1759174839264,4.39374737,4178.5,4178.4,1.19571]
[1759174839465,4.18754737,4178.5,4178.4,1.19571]
[1759174839665,3.94554737,4178.5,4178.4,1.19571]
[1759174839867,4.18754737,4178.5,4178.4,1.19571]
[1759174840870,0.51104737,4178.5,4178.4,1.19571]
[1759174841070,0.75304737,4178.5,4178.4,1.19571]
[1759174841475,0.51104737,4178.5,4178.4,1.19571]
[1759174842471,0.51104737,4178.5,4178.4,6.19571]
[1759174842662,0.00205126,4178.9,4178.8,0.86617]
[1759174842868,0.00205126,4178.9,4178.8,1.19567]
[1759174843174,0.00632366,4179.3,4178.8,5.7652]
[1759174843367,0.5432,4180.4,4180.3,0.7652]
[1759174843565,0.7633,4180.4,4180.3,0.7652]
[1759174843866,41.3619,4180.5,4179.9,0.5381]
[1759174843867,0.8949,4180.0,4179.9,0.5381]
[1759174844264,1.43559,4180.6,4180.2,0.3295]
[1759174844567,1.43559,4180.6,4180.2,0.7652]
[1759174844568,0.7633,4180.3,4180.2,0.7652]
[1759174845766,0.2062,4180.3,4180.2,0.7652]
[1759174845962,0.00296161,4180.6,4180.5,0.8999]
[1759174848269,0.76626161,4180.6,4180.5,0.7652]
[1759174848578,0.54616161,4180.6,4180.5,0.7652]
[1759174849163,0.54616161,4180.6,4180.5,0.8999]
[1759174849472,0.00296161,4180.6,4180.5,0.8999]
[1759174849971,0.20916161,4180.6,4180.5,0.8999]
[1759174850569,0.00296161,4180.6,4180.5,0.8999]
[1759174853372,0.00296161,4180.6,4180.5,5.8999]
[1759174854677,0.00296161,4180.6,4180.5,6.33019]
[1759174854972,0.00296161,4180.6,4180.5,1.33019]
[1759174855177,0.75446161,4180.6,4180.5,1.19549]
[1759174855473,0.75446161,4180.6,4180.5,0.65699]
[1759174855975,0.75446161,4180.6,4180.5,1.18629]
[1759174856869,0.47276161,4180.6,4180.5,1.31939]
[1759174857069,0.00296161,4180.6,4180.5,1.31939]
[1759174857970,0.53756161,4180.6,4180.5,1.31939]
[1759174858370,0.53756161,4180.6,4180.5,1.18629]
[1759174858870,0.75446161,4180.6,4180.5,1.18629]
[1759174860170,0.75446161,4180.6,4180.5,0.43029]
[1759174860670,0.75446161,4180.6,4180.5,0.65699]
[1759174862769,1.18474161,4180.6,4180.5,0.65699]
[1759174863172,1.18474161,4180.6,4180.5,0.43029]
[1759174863374,0.8786,4180.0,4179.9,0.86336]
[1759174863579,0.5508,4180.2,4180.1,1.18634]
[1759174863878,0.4437,4179.9,4179.4,1.07603]
[1759174864077,0.7515,4179.5,4179.4,1.18641]
[1759174865080,0.5346,4179.5,4179.4,1.18641]
[1759174865280,0.2268,4179.5,4179.4,1.18641]
[1759174865777,0.5346,4179.5,4179.4,1.18641]
[1759174868073,0.7515,4179.5,4179.4,1.18641]
[1759174868278,0.7515,4179.5,4178.8,0.243]
[1759174868279,1.309,4179.5,4178.8,0.323]
[1759174868571,0.3078,4179.9,4179.5,0.1331]
[1759174868781,0.3078,4179.9,4179.8,0.756]
[1759174868782,0.7515,4179.9,4179.8,0.756]
[1759174868975,0.9945,4179.9,4179.8,0.756]
[1759174869174,0.7515,4179.9,4179.8,0.756]
[1759174869481,0.9945,4179.9,4179.8,0.756]
[1759174869674,0.7515,4179.9,4179.8,0.756]
[1759174869887,41.3346,4180.2,4180.1,1.18634]
[1759174870078,41.5776,4180.2,4180.1,1.18634]
[1759174870377,42.29225435,4180.2,4180.1,1.18634]
[1759174871469,0.4349,4180.5,4180.4,0.4303]
[1759174871670,0.9945,4180.5,4180.4,1.1863]
[1759174871974,42.29263284,4180.5,4180.4,1.1863]
[1759174872168,42.04963284,4180.5,4180.4,1.1863]
[1759174872377,0.96793284,4180.5,4180.4,1.1863]
[1759174872570,0.74113284,4180.5,4180.4,1.1863]
[1759174872878,0.00296161,4180.6,4180.5,0.8891]
[1759174874177,0.00296161,4180.6,4180.5,5.8891]
[1759174874377,0.8263,4181.7,4181.6,0.7476]
[1759174874575,1.32483303,4181.7,4181.6,0.7476]
[1759174875278,1.32747882,4181.7,4181.6,0.75032556]
[1759174875579,1.32747882,4181.7,4181.6,0.42972556]
[1759174875785,1.32747882,4181.7,4181.6,0.00272556]
[1759174876276,1.50347882,4181.7,4181.6,0.75032556]
[1759174876781,0.95557882,4181.7,4181.6,0.75032556]
[1759174877379,1.29037882,4181.7,4181.6,0.75032556]
[1759174877579,1.50347882,4181.7,4181.6,0.75032556]
[1759174878176,0.50117882,4181.7,4181.6,0.75032556]
[1759174878372,0.00264579,4181.7,4181.6,0.75032556]
[1759174878580,0.00264579,4181.7,4181.6,5.75032556]
[1759174878772,0.00264579,4181.7,4181.6,0.75032556]
[1759174878987,0.54884579,4181.7,4181.6,0.75032556]
[1759174879179,0.00264579,4181.7,4181.6,0.75032556]
[1759174880885,0.00264579,4181.7,4181.6,5.75032556]
[1759174881984,0.00264579,4181.7,4181.6,6.18050556]
[1759174882489,0.00264579,4181.7,4181.6,1.18050556]
[1759174885391,0.53434579,4181.7,4181.6,1.18050556]
[1759174886079,0.21404579,4181.7,4181.6,1.18050556]
[1759174886586,0.00264579,4181.7,4181.6,1.18050556]
[1759174887191,0.21554579,4181.7,4181.6,1.18050556]
[1759174887390,0.00264579,4181.7,4181.6,1.18050556]
[1759174889284,0.74114579,4181.7,4181.6,1.18050556]
[1759174889488,0.74114579,4181.7,4181.6,0.43290556]
[1759174889689,0.74114579,4181.7,4181.6,1.18890556]
[1759174889886,0.21554579,4181.7,4181.6,1.18890556]
[1759174890193,0.00264579,4181.7,4181.6,1.18890556]
[1759174890583,0.21554579,4181.7,4181.6,1.18890556]
[1759174890893,0.53584579,4181.7,4181.6,1.18890556]
[1759174892094,0.74114579,4181.7,4181.6,1.18890556]
[1759174892994,0.21554579,4181.7,4181.6,1.18890556]
[1759174893896,0.53584579,4181.7,4181.6,1.18890556]
[1759174894090,0.00264579,4181.7,4181.6,1.18890556]
[1759174894296,0.21554579,4181.7,4181.6,1.18890556]
[1759174894497,0.53584579,4181.7,4181.6,1.18890556]
[1759174894890,0.74114579,4181.7,4181.6,1.18890556]
[1759174895599,1.17131579,4181.7,4181.6,0.00272556]
[1759174895793,6.17131579,4181.7,4181.6,0.00272556]
[1759174896199,46.97131579,4181.7,4181.6,0.00272556]
[1759174897395,1.29965,4181.0,4180.9,0.64525]
[1759174897700,0.2129,4180.4,4180.3,1.18631]
[1759174897899,0.3203,4181.2,4180.8,0.541]
[1759174898096,0.3203,4181.2,4181.1,0.756]
[1759174898097,0.7385,4181.2,4181.1,0.756]
[1759174898297,0.9815,4181.2,4181.1,0.75848221]
[1759174898496,1.41172,4181.2,4181.1,0.00248221]
[1759174898898,6.41172,4181.2,4181.1,0.00248221]
[1759174899598,1.41172,4181.2,4181.1,0.00248221]
[1759174900704,6.41172,4181.2,4181.1,0.00248221]
[1759174901005,0.7385,4180.1,4180.0,0.85415]
[1759174901298,1.41184,4180.1,4180.0,0.64535]
[1759174901604,41.7815,4180.1,4180.0,1.18635]
[1759174901802,41.7815,4180.1,4180.0,1.18935293]
[1759174902502,41.7815,4180.1,4180.0,0.85715293]
[1759174904002,42.21184,4180.1,4180.0,0.85715293]
[1759174904303,41.7815,4180.1,4180.0,0.85715293]
[1759174905098,41.7815,4180.1,4180.0,0.64835293]
[1759174909099,0.3203,4180.1,4180.0,1.18935293]
[1759174909308,1.20639,4181.5,4180.8,0.64526]
[1759174909309,1.16875,4180.9,4180.8,0.64526]
[1759174909510,1.25675,4180.9,4180.8,0.43026]
[1759174909701,42.05675,4180.9,4180.8,0.43026]
[1759174909900,0.7385,4180.6,4180.1,1.40802]
[1759174910100,0.7385,4180.2,4180.1,1.18634]
[1759174911810,0.9815,4180.2,4180.1,0.85414]
[1759174912110,0.9815,4180.2,4180.1,1.18634]
[1759174912400,0.4559,4180.2,4180.1,1.18634]
[1759174912606,0.7762,4180.2,4180.1,1.18634]
[1759174914710,0.9815,4180.2,4180.1,1.18634]
[1759174914904,0.9815,4180.2,4180.1,0.64534]
[1759174915599,0.9815,4180.2,4180.1,0.97814]
[1759174915810,0.9815,4180.2,4180.1,1.19724]
[1759174916513,0.7385,4180.2,4180.1,1.19724]
[1759174919216,0.2129,4180.2,4180.1,1.19724]
[1759174919617,0.5354,4180.2,4180.1,1.19724]
[1759174920319,0.7523,4180.2,4180.1,1.19724]
[1759174922114,0.2154,4180.7,4180.5,1.07573]
[1759174922320,0.2154,4180.7,4180.6,1.19388]
[1759174922821,0.243,4180.9,4180.8,0.86106]
[1759174923012,0.243,4180.9,4180.8,1.19386]
[1759174923517,0.7809,4180.9,4180.8,1.19386]
[1759174923719,0.5379,4180.9,4180.8,1.19386]
[1759174924021,0.5379,4181.3,4181.2,1.19382]
[1759174924521,0.2154,4181.6,4181.5,1.32299]
[1759174924723,0.5379,4181.6,4181.5,1.32299]
[1759174926107,0.00264579,4181.7,4181.6,1.19377]
[1759174935216,0.243,4182.6,4182.5,0.43009]
[1759174935425,0.6748,4182.6,4182.5,1.19419]
[1759174935815,0.9903,4182.6,4182.5,1.19419]
[1759174936015,41.7903,4182.6,4182.5,1.19419]
[1759174936225,41.79234068,4182.6,4182.5,1.19419]
[1759174937217,41.79234068,4182.6,4182.5,0.86479]
[1759174937422,0.74934068,4182.6,4182.5,1.19419]
[1759174937914,0.99234068,4182.6,4182.5,1.19419]
[1759174939523,0.99234068,4182.6,4182.5,0.43009]
[1759174944223,41.79234068,4182.6,4182.5,0.43009]
[1759174944425,41.79234068,4182.6,4182.5,0.64729]
[1759174945126,41.79234068,4182.6,4182.5,0.43009]
[1759174945828,41.79234068,4182.6,4182.5,0.65009]
[1759174946031,41.54934068,4182.6,4182.5,0.65009]
[1759174946224,41.79234068,4182.6,4182.5,0.65009]
[1759174947632,0.99234068,4182.6,4182.5,1.18479]
[1759174947922,41.79234068,4182.6,4182.5,1.18479]
[1759174948921,41.79234068,4182.6,4182.5,0.65009]
[1759174949124,41.79964068,4182.6,4182.5,0.43009]
[1759174954331,42.2905452,4182.6,4182.5,0.43009]
[1759174954635,42.2895452,4182.6,4182.5,0.43009]
[1759174954828,42.0475452,4182.6,4182.5,0.95749]
[1759174955027,42.2895452,4182.6,4182.5,0.95749]
[1759174955435,42.2895452,4182.6,4182.5,0.65009]
[1759174955634,42.28961817,4182.6,4182.5,0.65009]
[1759174956434,42.28961817,4182.6,4182.5,0.43009]
[1759174956834,42.28961817,4182.6,4182.5,0.95749]
[1759174957035,41.79864068,4182.6,4182.5,0.95749]
[1759174957224,41.79864068,4182.6,4182.5,0.65009]
[1759174958338,42.28973864,4182.6,4182.5,0.43009]
[1759174958537,42.28973864,4182.6,4182.5,0.65009]
[1759174960337,42.28973864,4182.6,4182.5,0.95749]
[1759174961335,42.28973864,4182.6,4182.5,0.65009]
[1759174961537,42.28973864,4182.6,4182.5,0.43009]
[1759174961733,1.48973864,4182.6,4182.5,0.43009]
[1759174962337,0.5358,4182.2,4182.1,0.43013]
[1759174962539,0.8778,4182.0,4181.9,0.43015]
[1759174962839,1.1088,4182.0,4181.9,0.43015]
[1759174963045,41.6778,4182.0,4181.9,0.43015]
[1759174963340,41.9198,4182.0,4181.9,0.43015]
[1759174964141,41.6778,4182.0,4181.9,0.65015]
[1759174964341,41.9198,4182.0,4181.9,0.65015]
[1759174964637,41.6778,4182.0,4181.9,0.65015]
[1759174964833,41.544,4182.0,4181.9,1.18485]
[1759174965035,0.555,4182.5,4182.4,0.4301]
[1759174965342,1.61117491,4182.5,4182.4,0.6501]
[1759174965643,42.41117491,4182.5,4182.4,0.6501]
[1759174967148,42.41117491,4182.5,4182.4,0.4301]
[1759174969847,42.41117491,4182.5,4182.4,0.9575]
[1759174970055,1.61117491,4182.5,4182.4,1.1848]
[1759174970647,1.61117491,4182.5,4182.4,0.8774]
[1759174970853,1.36917491,4182.5,4182.4,0.8774]
[1759174971148,1.61117491,4182.5,4182.4,0.8774]
[1759174972255,1.61117491,4182.5,4182.4,0.4301]
[1759174972858,2.04128491,4182.5,4182.4,0.4301]
[1759174973863,1.61117491,4182.5,4182.4,0.4301]
[1759174974359,2.04126491,4182.5,4182.4,0.4301]
[1759174974860,1.21451,4182.4,4182.3,0.43011]
[1759174975155,1.70588491,4182.4,4182.3,0.43011]
[1759174975549,1.27577491,4182.4,4182.3,0.43011]
[1759174976358,1.27577491,4182.4,4182.3,0.63571]
[1759174976655,1.27577491,4182.4,4181.9,0.43015]
[1759174976656,0.9181,4182.0,4181.9,0.43015]
[1759174976858,0.9181,4182.0,4181.9,0.63575]
[1759174977462,0.9181,4182.0,4181.9,0.96345]
[1759174980060,0.9181,4182.0,4181.9,1.17635]
[1759174980362,0.7844,4182.0,4181.9,1.17635]
[1759174981863,0.9182,4182.5,4182.4,1.1763]
[1759174982061,1.57357294,4182.5,4182.4,1.1763]
[1759174983166,1.40957294,4182.5,4182.4,1.1763]
[1759174983461,1.65157294,4182.5,4182.4,1.1763]
[1759174984668,1.65157294,4182.5,4182.4,0.4301]
[1759174984861,1.65157294,4182.5,4182.4,0.6357]
[1759174985168,0.5846,4182.0,4181.9,0.63575]
[1759174985477,0.5846,4182.0,4181.9,0.43015]
[1759174985478,0.9181,4182.0,4181.9,0.43015]
[1759174985767,0.3335,4182.0,4181.9,1.17635]
[1759174985960,0.5585,4182.0,4181.9,1.17635]
[1759174986759,0.7844,4182.0,4181.9,1.17635]
[1759174989867,0.9181,4182.0,4181.9,0.63575]
[1759174990467,0.9181,4182.0,4181.9,1.17635]
[1759174991173,0.7844,4182.0,4181.9,1.17635]
[1759174991869,0.242,4182.2,4182.1,0.43013]
[1759174992084,0.6929,4182.2,4182.1,1.17633]
[1759174992569,41.8264,4182.2,4182.1,1.17633]
[1759174993668,0.7844,4182.2,4182.1,1.17633]
[1759174994577,0.5585,4182.2,4182.1,1.17633]
[1759174994773,0.3758,4182.5,4182.4,0.4301]
[1759174994774,0.9187,4182.5,4182.4,0.4301]
[1759174994973,1.2765577,4182.5,4182.4,1.1798]
[1759174995278,1.0345577,4182.5,4182.4,1.1798]
[1759174996472,0.5429,4182.5,4182.4,1.1798]
[1759174997770,0.00204068,4182.6,4182.5,1.30669]
[1759174997971,0.76124068,4182.6,4182.5,1.17979]
[1759174999968,0.54494068,4182.6,4182.5,1.30669]
[1759175000172,0.54494068,4182.6,4182.5,1.17979]
[1759175000973,0.76124068,4182.6,4182.5,1.17979]
[1759175001375,0.76124068,4182.6,4182.5,0.86329]
[1759175001579,0.76124068,4182.6,4182.5,1.17979]
[1759175001780,0.76124068,4182.6,4182.5,0.86329]
[1759175002176,0.76124068,4182.6,4182.5,1.17979]
[1759175007390,0.54494068,4182.6,4182.5,1.17979]
[1759175007587,0.76954068,4182.6,4182.5,1.17979]
[1759175014585,0.76954068,4182.6,4182.5,0.86329]
[1759175014989,0.76954068,4182.6,4182.5,1.20139]
[1759175015389,0.76954068,4182.6,4182.5,0.43009]
[1759175015695,0.33,4182.1,4182.0,1.70106395]
[1759175015883,0.7643,4182.1,4182.0,0.43014]
[1759175016084,0.7643,4182.1,4182.0,0.63534]
[1759175016692,0.7643,4182.1,4182.0,0.97344]
[1759175017196,0.7643,4182.1,4182.0,1.19884]
[1759175019791,0.242,4182.3,4182.0,1.19884]
[1759175019995,0.242,4182.3,4182.2,1.19882]
[1759175019996,1.0063,4182.3,4182.2,1.19882]
[1759175020795,0.5397,4182.3,4182.2,1.19882]
[1759175021097,0.67834068,4182.6,4182.5,1.19878]
[1759175021293,1.16949528,4182.6,4182.5,1.19878]
[1759175021596,1.49949528,4182.6,4182.5,1.19878]
[1759175022098,1.49949528,4182.6,4182.5,0.43008]
[1759175022688,1.49949528,4182.6,4182.5,0.63528]
[1759175024093,1.49949528,4182.6,4182.5,1.19878]
[1759175027102,1.00834068,4182.6,4182.5,1.19878]
[1759175028404,0.76634068,4182.6,4182.5,1.19878]
[1759175030409,0.76634068,4182.6,4182.5,0.63528]
[1759175030712,0.76634068,4182.6,4182.5,0.43008]
[1759175031008,1.2576179,4182.6,4182.5,0.43008]
[1759175032108,1.6876879,4182.6,4182.5,0.43008]
[1759175032313,0.7643,4182.4,4182.3,0.4301]
[1759175035215,0.7643,4182.4,4182.3,0.6353]
[1759175035705,0.7643,4182.4,4182.3,0.9506]
[1759175035906,0.7643,4182.4,4182.3,1.1734]
[1759175036111,0.7643,4182.4,4182.3,0.6353]
[1759175036508,0.7643,4182.4,4182.3,0.9506]
[1759175037412,0.7643,4182.4,4182.3,0.6353]
[1759175037620,0.7643,4182.4,4182.3,0.4301]
[1759175037812,0.5397,4182.4,4182.3,1.1937]
[1759175040220,0.52194068,4182.6,4182.5,1.32348]
[1759175040417,0.00204068,4182.6,4182.5,1.32348]
[1759175042616,0.022,4182.9,4182.8,0.7636]
[1759175043010,0.022,4182.9,4182.8,2.4704576]
[1759175043221,0.04161462,4184.4,4182.8,2.4704576]
[1759175043222,0.04161462,4184.4,4183.5,0.1298]
[1759175043410,0.314,4185.2,4184.7,1.19346]
[1759175043611,0.47323516,4184.8,4184.7,0.76651867]
[1759175043816,1.20353516,4184.8,4184.7,0.76651867]
[1759175044021,1.20353516,4184.8,4184.7,0.22841867]
[1759175044214,0.1335,4185.5,4184.7,0.22841867]
[1759175044215,0.4163,4185.7,4185.6,0.2255]
[1759175044615,41.2163,4185.7,4185.6,0.2255]
[1759175044822,41.5303,4185.7,4185.6,0.2255]
[1759175045126,41.5303,4185.7,4184.0,0.42992]
[1759175045127,1.16014,4184.9,4184.0,0.42992]
[1759175045321,0.2059,4183.8,4183.7,1.12026]
[1759175045531,0.7303,4183.8,4183.7,0.87826]
[1759175046228,0.7303,4183.8,4183.7,0.88049132]
[1759175046431,0.9203,4183.8,4183.7,0.88049132]
[1759175046631,0.19,4183.8,4183.7,1.02999132]
[1759175046929,0.504,4183.8,4183.7,1.02999132]
[1759175047132,0.19,4183.8,4183.7,1.02999132]
[1759175047429,0.19,4183.8,4183.7,6.02999132]
[1759175049430,0.7099,4183.8,4183.7,1.02999132]
[1759175049730,0.7099,4183.8,4183.7,1.27199132]
[1759175049930,0.7099,4183.8,4183.7,1.12249132]
[1759175050630,0.504,4183.8,4183.7,1.27199132]
[1759175051019,0.19,4183.8,4183.7,1.27199132]
[1759175055927,0.5111,4183.8,4183.7,1.27199132]
[1759175057830,0.7211,4183.8,4183.7,1.27199132]
[1759175058031,0.7211,4183.8,4183.7,1.12249132]
[1759175058735,0.7211,4183.8,4183.7,1.27189132]
[1759175059035,0.5111,4183.8,4183.7,1.27189132]
[1759175059333,0.9308,4183.8,4183.7,1.12249132]
[1759175060032,0.9308,4183.8,4183.7,0.88049132]
[1759175060236,0.9308,4183.8,4183.7,1.12249132]
[1759175060932,0.9308,4183.8,4183.7,0.88049132]
[1759175061235,0.9308,4183.8,4183.7,1.12249132]
[1759175061925,0.9308,4183.8,4183.7,1.27189132]
[1759175061926,0.7211,4183.8,4183.7,1.27189132]
[1759175062126,0.5111,4183.8,4183.7,1.27189132]
[1759175063528,0.9308,4183.8,4183.7,0.88049132]
[1759175063838,0.9308,4183.8,4183.7,0.43219132]
[1759175069539,0.5111,4183.8,4183.7,1.02849132]
[1759175070442,0.9363,4183.8,4183.7,0.65909132]
[1759175070943,0.9363,4183.8,4183.7,0.87949132]
[1759175071149,0.9363,4183.8,4183.7,1.02849132]
[1759175072046,0.9363,4183.8,4183.7,0.87949132]
[1759175072247,0.9363,4183.8,4183.7,0.43219132]
[1759175077547,1.36625,4183.8,4183.7,0.00223132]
[1759175077748,0.7349,4183.6,4183.5,0.42997]
[1759175078444,0.42998,4183.5,4183.4,0.42998]
[1759175078650,1.29078,4183.5,4183.4,0.43209475]
[1759175078847,1.1028,4183.5,4183.4,0.43209475]
[1759175079152,41.9028,4183.5,4183.4,0.43209475]
[1759175079551,42.0928,4183.5,4183.4,0.43209475]
[1759175082046,42.52278,4183.5,4183.4,0.43209475]
[1759175082254,42.0928,4183.5,4183.4,0.43209475]
[1759175085654,42.0928,4183.5,4183.4,0.65899475]
[1759175085854,1.0508,4183.5,4183.4,0.65899475]
[1759175086652,1.0508,4183.5,4183.4,0.87939475]
[1759175089157,1.0508,4183.5,4183.4,1.02839475]
[1759175090055,0.19,4183.5,4183.4,6.02839475]
[1759175090658,0.4997,4183.5,4183.4,6.02839475]
[1759175092962,0.4997,4183.5,4183.4,6.27039475]
[1759175094956,0.6355,4183.5,4183.4,6.27039475]
[1759175096162,0.8493,4183.5,4183.4,6.27039475]
[1759175097261,0.6355,4183.5,4183.4,6.27039475]
[1759175098259,0.4997,4183.5,4183.4,6.27039475]
[1759175098458,0.19,4183.5,4183.4,6.27039475]
[1759175098654,0.5056,4183.5,4183.4,6.27039475]
[1759175099656,0.7194,4183.5,4183.4,5.65899475]
[1759175099862,0.8552,4183.5,4183.4,6.12719475]
[1759175101463,1.079,4183.5,4183.4,1.12719475]
[1759175101857,1.079,4183.5,4183.4,2.40262641]
[1759175103156,1.079,4183.5,4183.4,2.16062641]
[1759175103361,1.079,4183.5,4183.4,2.40262641]
[1759175104361,1.079,4183.5,4183.4,1.94952641]
[1759175104663,1.079,4183.5,4183.4,1.70752641]
[1759175106051,41.879,4183.5,4183.4,0.43209475]
[1759175106251,46.879,4183.5,4183.4,0.43209475]
[1759175106959,1.1832,4183.3,4183.2,0.43001]
[1759175107164,0.9952,4183.3,4183.2,0.43001]
[1759175107464,0.9432,4183.3,4183.2,0.43001]
[1759175107664,1.1852,4183.3,4183.2,0.65351]
[1759175107866,1.1852,4183.3,4183.2,0.65659241]
[1759175108060,1.1852,4183.3,4183.2,0.43309241]
[1759175108965,0.9432,4183.3,4183.2,0.43309241]
[1759175109559,0.9432,4183.3,4183.2,0.65659241]
[1759175109864,0.5056,4183.3,4183.2,1.03519241]
[1759175110258,0.19,4183.3,4183.2,2.31062407]
[1759175110458,0.19,4183.3,4183.2,1.03519241]
[1759175111468,0.7194,4183.3,4183.2,0.88279241]
[1759175111768,0.7194,4183.3,4183.2,1.03519241]
[1759175112565,0.19,4183.3,4183.2,1.03519241]
[1759175113874,0.3156,4183.7,4183.6,1.03207]
[1759175114070,0.5294,4183.7,4183.6,1.03207]
[1759175114972,0.5294,4183.7,4183.6,0.87967]
[1759175115773,0.1364,4184.0,4183.9,0.42993]
[1759175115972,0.1364,4184.0,4183.9,1.03203]
[1759175116265,0.3502,4184.0,4183.9,0.87963]
[1759175116469,0.6658,4184.0,4183.9,0.87963]
[1759175116671,0.452,4184.0,4183.9,2.30680572]
[1759175117068,0.6658,4184.0,4183.9,2.30680572]
[1759175118774,0.3156,4184.0,4183.9,2.30680572]
[1759175119072,41.3223,4184.4,4184.3,0.84529]
[1759175119375,41.5294,4184.4,4184.3,0.84529]
[1759175120269,41.5294,4184.4,4184.3,0.99679]
[1759175120770,41.5294,4184.4,4184.3,0.84529]
[1759175122168,41.5294,4184.4,4184.3,0.67189]
[1759175126770,41.5294,4184.4,4184.3,0.42989]
[1759175128176,0.7475,4184.2,4183.8,1.27477572]
[1759175128477,45.8,4184.4,4183.3,1.70047838]
[1759175128478,0.7475,4183.8,4183.7,0.42994]
[1759175128779,41.5475,4183.8,4183.7,0.64104]
[1759175128970,0.7475,4183.8,4183.7,0.64104]
[1759175129172,0.7475,4183.8,4183.7,0.86504]
[1759175129583,0.7475,4183.8,4183.7,1.01654]
[1759175129781,0.525,4183.8,4183.7,1.01654]
[1759175130878,0.525,4183.8,4183.7,0.86504]
[1759175131684,0.7475,4183.8,4183.7,0.86504]
[1759175131890,0.7475,4183.8,4183.7,0.42994]
[1759175133981,0.7475,4183.8,4183.7,0.64104]
[1759175134183,0.7475,4183.8,4183.7,0.86504]
[1759175137082,0.7475,4183.8,4183.7,0.42994]
[1759175137276,0.7475,4183.8,4183.7,0.64104]
[1759175137783,0.7475,4183.8,4183.7,0.88304]
[1759175138384,0.7475,4183.8,4183.7,2.15781572]
[1759175138689,0.7475,4183.8,4183.7,1.91581572]
[1759175138983,0.7475,4183.8,4183.7,0.42994]
[1759175139480,0.7475,4183.8,4183.7,1.70472572]
[1759175139783,0.7475,4183.8,4183.7,0.42995]
[1759175147590,0.7475,4183.8,4183.7,0.64105]
[1759175148191,0.7475,4183.8,4183.7,1.91582572]
[1759175149188,0.7475,4183.8,4183.7,0.64105]
[1759175150391,0.7475,4183.8,4183.7,2.13982572]
[1759175151988,0.7475,4183.8,4183.7,0.64105]
[1759175152188,0.7475,4183.8,4183.7,0.42995]
[1759175153388,0.525,4183.8,4183.7,2.53332572]
[1759175154296,0.5276,4183.8,4183.7,2.53332572]
[1759175154597,0.7507,4183.8,4183.7,2.38182572]
[1759175156094,0.7507,4183.8,4183.7,0.86505]
[1759175156280,0.7507,4183.8,4183.6,0.242]
[1759175156485,0.7507,4183.8,4183.2,0.00308241]
[1759175156486,0.7507,4183.3,4183.2,0.00308241]
[1759175156694,1.18069,4183.3,4183.2,0.00308241]
[1759175157096,41.98069,4183.3,4183.2,0.00308241]
[1759175157401,0.7507,4182.6,4182.5,0.43007]
[1759175158292,0.7507,4182.6,4182.5,0.43274876]
[1759175158495,0.7507,4182.6,4182.5,0.63844876]
[1759175159890,0.7507,4182.6,4182.5,0.00267876]
[1759175160284,0.7507,4182.6,4182.5,0.20837876]
[1759175160489,0.7507,4182.6,4182.5,0.63844876]
[1759175160690,0.7507,4182.6,4182.5,0.43274876]
[1759175160889,0.7507,4182.6,4182.5,0.00267876]
[1759175161085,0.8787,4182.0,4181.9,0.43013]
[1759175161491,41.6787,4182.0,4181.9,0.85743]
[1759175162099,41.6787,4182.0,4181.9,0.85951495]
[1759175163191,41.6787,4182.0,4181.9,0.63791495]
[1759175164095,41.6787,4182.0,4181.9,0.43221495]
[1759175165398,41.6787,4182.0,4181.9,0.63791495]
[1759175165798,41.6787,4182.0,4181.9,0.43221495]
[1759175173301,0.4338,4181.7,4181.2,1.07551]
[1759175173501,0.8787,4181.0,4180.9,0.63594]
[1759175173704,0.8787,4181.0,4180.9,0.85754]
[1759175174397,0.88106738,4181.0,4180.9,0.85981435]
[1759175174590,0.88106738,4181.0,4180.9,0.43251435]
[1759175177199,0.88106738,4181.0,4180.9,0.64801435]
[1759175177407,0.88106738,4181.0,4180.9,0.86451435]